Cogmind - Beta 16 @@@ ROGUE MODE // 2025.12.21 @ 01:34:58 Player: Xellophane Result: Destroyed by G-47 Trooper with Particle Gun Performance ------------- Evolutions (0) 0 Regions Visited (1) 200 Robots Destroyed (12) 60 Value Destroyed (263) 263 Prototype IDs (2) 40 Alien Tech Used (0) 0 Bonus (0) 0 TOTAL SCORE: 563 Bonus ------- None Cogmind --------- Core Integrity 0/250 Matter 299/300 Energy 250/250 System Corruption 0% Temperature Cool (15) Movement Walking (120) Location -10/Materials Parts ------- > --- POWER (1) -------- Ion Engine > --- PROPULSION (2) --- Aluminum Leg Aluminum Leg > --- UTILITY (2) ------ Medium Storage Unit Signal Interpreter > --- WEAPON (2) ------- Light Assault Rifle > --- INVENTORY (10) --- Ion Engine Flight Unit Flight Unit Small Storage Unit Structural Scanner Transport Network Coupler Light Assault Rifle Grenade Launcher Peak State ------------ > --- POWER ------------ Ion Engine > --- PROPULSION ------- Light Treads Light Treads > --- UTILITY ---------- Small Storage Unit Improved Terrain Scanner > --- WEAPON ----------- Light Assault Rifle Light Assault Rifle > --- INVENTORY -------- Aluminum Leg Aluminum Leg Seismic Detector [Rating: 9] Favorites ----------- Power Ion Engine Engine Ion Engine Propulsion Aluminum Leg Treads Light Treads Leg Aluminum Leg Utility Small Storage Unit Device Improved Terrain Scanner Storage Small Storage Unit Processor Signal Interpreter Weapon Light Assault Rifle Ballistic Gun Light Assault Rifle Build | -11 -10 ------- Run | Yrd Mat Slots Evolved . | . . Power . | . . Propulsion . | . . Utility . | . . Weapon . | . . Parts Attached 16 | 8 8 Power 2 | 1 1 Engine 2 | 1 1 Core . | . . Reactor . | . . Propulsion 5 | 2 3 Treads 2 | 2 . Leg 3 | . 3 Wheel . | . . Hover . | . . Flight . | . . Utility 6 | 3 3 Device 3 | 2 1 Storage 2 | 1 1 Processor 1 | . 1 Hackware . | . . Protection . | . . Artifact . | . . Weapon 3 | 2 1 Energy Gun . | . . Energy Cannon . | . . Ballistic Gun 3 | 2 1 Ballistic Cannon . | . . Launcher . | . . Special Weapon . | . . Impact Weapon . | . . Slashing Weapon . | . . Piercing Weapon . | . . Special Melee Weapon . | . . Unidentified Prototypes . | . . Parts Lost 6 | . 6 Power 1 | . 1 Propulsion 2 | . 2 Utility 1 | . 1 Weapon 2 | . 2 Highest Loss Streak 5 | . 5 To Critical Strikes . | . . Average Backups 5 | 1 6 Power . | . . Propulsion 2 | 1 2 Utility 1 | . 1 Weapon 1 | . 2 Tool/Special . | . . Unused Backups 7 | . 7 Power 1 | . 1 Propulsion 3 | . 3 Utility 1 | . 1 Weapon 2 | . 2 Tool/Special . | . . Average Slot Usage (%) 96 | . 96 Engine 13 | . 13 Treads 8 | . 8 Leg 18 | . 18 Device 6 | . 6 Storage 14 | . 14 Processor 6 | . 6 Ballistic Gun 27 | . 27 Peak Build Rating 9 | 9 9 Average Rating 7 | 5 7 On Entrance 4 | . 9 Avg Prop Armor Cover (%) . | . . Naked Turns . | . . Heaviest Build 18 | 13 18 Greatest Support 40 | 40 40 Greatest Overweight (x) 2 | 1 2 Average Overweight (x) . | . . Largest Inventory Capacity 10 | 8 10 Average Capacity 8 | 7 9 Most Carried 9 | 3 9 Average Carried 5 | 1 6 Final Capacity 10 | 8 10 Final Carried 8 | 2 8 Class Distribution -------------------- 100% | Mutant Dominant Class ---------------- Mutant | -10/Materials Resources | -11 -10 ----------- Run | Yrd Mat Matter Collected 541 | 298 243 Remotely . | . . Salvage Created 385 | 36 349 Parts 27 | 8 19 Haulers Intercepted 1 | . 1 Recyclers Shooed 1 | 1 . Parts Field Recycled . | . . Retrieved Matter . | . . Parts Self-Destructed . | . . Prevented . | . . Parts Restored . | . . Kills | -11 -10 ------- Run | Yrd Mat Combat Hostiles Destroyed 9 | . 9 Guns 9 | . 9 Classes Destroyed 4 | 1 3 Tunneler 2 | 2 . Hauler 1 | . 1 Swarmer 3 | . 3 Grunt 6 | . 6 Best Kill Streak 5 | 1 5 Combat Bots Only 5 | . 5 Max Kills in Single Turn 1 | 1 1 Gunslinging . | . . Exploded . | . . Melee . | . . Uniques/NPCs Destroyed . | . . Combat | -11 -10 -------- Run | Yrd Mat Hostile Shots Fired 107 | . 107 Missed 27 | . 27 Hits 80 | . 80 Projectile 80 | . 80 Critical Strikes 1 | . 1 Damage Taken 975 | . 975 Core 256 | . 256 Absorbed by Shields . | . . Core Remaining (%) 100 | 100 . Volleys Fired 71 | 9 62 Largest 2 | 2 2 Hottest 40 | 40 40 Shots Fired 139 | 18 121 Gun 139 | 18 121 Cannon . | . . Launcher . | . . Special . | . . Kinetic 139 | 18 121 Thermal . | . . Explosive . | . . Electromagnetic . | . . Robot Hit Streak 10 | 6 10 Robot Miss Streak 4 | 3 4 Penetration Max . | . . Secondary Targets 2 | . 2 Max Gunslinging Chain 1 | . 1 Shots Hit Robots 82 | 13 69 Core Hits 31 | 7 24 Critical Kills 1 | . 1 Critical Parts Destroyed . | . . Critical Strikes 1 | . 1 Destroy 1 | . 1 Melee Attacks . | . . Impact . | . . Slashing . | . . Piercing . | . . Sneak Attacks . | . . Combat Hostiles . | . . Follow-up Attacks . | . . Damage Inflicted 661 | 102 559 Guns 661 | 102 559 Cannons . | . . Explosions . | . . Melee . | . . Ramming . | . . Kinetic 661 | 102 559 Thermal . | . . Explosive . | . . Electromagnetic . | . . Impact . | . . Slashing . | . . Piercing . | . . Highest Corruption . | . . Average Corruption . | . . Corruption Purged . | . . Corruption Blocked . | . . Overload Shots . | . . Overflow Damage . | . . Projectiles . | . . Explosions . | . . Melee . | . . Knockbacks . | . . Impact . | . . Kinetic . | . . Secondary . | . . Self-Inflicted Damage . | . . Shots . | . . Rammed . | . . Targets Rammed . | . . Kicked . | . . Crushed . | . . Highest Temperature 66 | . 66 Average Temperature 15 | . 15 Received Heat Transfer 510 | . 510 Siege Activations . | . . Martial Activations . | . . Shielding Activations . | . . Robots Disrupted . | . . Combat Hostiles . | . . Robots Corrupted . | . . Combat Hostiles . | . . Parts Fried . | . . Impact Corruptions . | . . Robots Melted . | . . Combat Hostiles . | . . Parts Melted . | . . Heat Transferred . | . . Parts Sabotaged . | . . Parts Stolen . | . . Parts Stripped . | . . Power Chain Reactions . | . . Alert | -11 -10 ------- Run | Yrd Mat Maximum Alert Level . | . . Low Security (%) 100 | 100 100 Level 1 . | . . Level 2 . | . . Level 3 . | . . Level 4 . | . . Level 5 . | . . High Security . | . . Max Security . | . . Peak Influence 125 | 5 125 Initial . | . . Average 16 | . 18 Influence Increases 256 | 10 246 Destroy 0b10 Robot/C 180 | . 180 Destroy 0b10 Robot/NC 15 | 10 5 Destroy Leader 32 | . 32 Successful Hack 14 | . 14 Lose Combat Pursuer 15 | . 15 Influence Decreases 256 | 10 246 Time Decay 198 | 10 188 Lost Part 58 | . 58 Squads Dispatched 1 | . 1 Investigation 1 | . 1 Extermination . | . . Reinforcement . | . . Assault . | . . Garrison . | . . Intercept . | . . Searches Triggered . | . . Construction Impeded . | . . Haulers Reinforced . | . . Active Scanning Responses . | . . Cargo Convoy Interrupts . | . . Stealth | -11 -10 --------- Run | Yrd Mat Distress Signals 4 | . 4 Communications Jammed . | . . Distress Signals . | . . Times Spotted 21 | . 21 Peak Tracking Total 7 | . 7 Tactical Retreats 1 | . 1 Traps | -11 -10 ------- Run | Yrd Mat Traps Triggered 5 | . 5 Indirectly . | . . Trap Hack Attempts . | . . Triggered . | . . Disarmed . | . . Reprogrammed . | . . Reused . | . . Traps Extracted . | . . Installed . | . . Triggered . | . . Machines | -11 -10 ---------- Run | Yrd Mat Machines Disabled . | . . Max in Single Turn . | . . Machines Repaired . | . . Machines Dismantled . | . . Machines Sabotaged . | . . Overloaded Fab Kills . | . . Hacking | -11 -10 --------- Run | Yrd Mat Machines Accessed 6 | . 6 Terminals 6 | . 6 Fabricators . | . . Repair Stations . | . . Recycling Units . | . . Scanalyzers . | . . Garrison Access . | . . Total Hacks 14 | . 14 Successful 6 | . 6 Failed 8 | . 8 Catastrophic 2 | . 2 Database Lockouts . | . . Manual 1 | . 1 Terminals 14 | . 14 Fabricators . | . . Repair Stations . | . . Recycling Units . | . . Scanalyzers . | . . Garrison Access . | . . Terminal Hacks 6 | . 6 Record 1 | . 1 Robot Analysis 1 | . 1 Prototype ID Bank 1 | . 1 Terminal Index 1 | . 1 Hauler Manifests 1 | . 1 Zone Layout 1 | . 1 Fabricator Hacks . | . . Repair Station Hacks . | . . Recycling Unit Hacks . | . . Scanalyzer . | . . Garrison Access Hacks . | . . Unauthorized Hacks . | . . Terminals . | . . Fabricators . | . . Repair Stations . | . . Recycling Units . | . . Scanalyzers . | . . Garrison Access . | . . Data Cores Recovered . | . . Used . | . . Hacking Detections 6 | . 6 Full Trace Events 1 | . 1 Feedback Events . | . . Feedback Blocked . | . . Robot Schematics Acquired . | . . Robots Built . | . . Authchips . | . . Time . | . . Total Robot Build Rating . | . . Part Schematics Acquired . | . . Parts Built . | . . Authchips . | . . Time . | . . Total Part Build Rating . | . . Part Studies Acquired . | . . Parts Repaired . | . . Time . | . . Parts Recycled . | . . Recycled Matter . | . . Retrieved Matter . | . . Retrieved Components . | . . Parts Scanalyzed . | . . Part Schematics Acquired . | . . Parts Damaged . | . . Bothacking | -11 -10 ------------ Run | Yrd Mat Used RIF Installer . | . . Robots Hacked . | . . Non-combat . | . . Combat . | . . Robot Hacks Applied . | . . Relay Couplers Released . | . . Fabnet Peak Effective % . | . . Robots Rewired . | . . Allies Hacked . | . . Hacks Repelled . | . . Allies | -11 -10 -------- Run | Yrd Mat Total Allies . | . . Largest Group . | . . Highest-Rated Group . | . . Highest-Rated Ally . | . . Total Orders . | . . Ally Attacks . | . . Total Damage . | . . Kills . | . . Allies Corrupted . | . . Allies Melted . | . . Intel | -11 -10 ------- Run | Yrd Mat Active Infowar (turns) 447 | 47 400 Terrain 280 | 13 267 Structural 133 | . 133 Seismic 34 | 34 . Robot Analysis Total 1 | . 1 Derelict Logs Recovered . | . . Drone Launches . | . . Drone Recoveries . | . . Exploration | -11 -10 ------------- Run | Yrd Mat Turns Passed 1009 | 99 910 Spaces Moved 594 | 41 553 Core 10 | 4 6 Treads 156 | 37 119 Legs 428 | . 428 Wheels . | . . Hover . | . . Flight . | . . Fastest Speed 50 | 50 100 Average Speed 130 | 150 128 Slowest Speed 160 | 160 160 Overloaded Moves . | . . Propulsion Burnouts . | . . Robots Hopped . | . . Potential Cave-ins . | . . Cave-ins Triggered . | . . Exploration Rate (%) 33 | 5 61 Regions Visited 1 Branch Regions . Pre-discovered Areas . | . . Known Exits Taken . | . . Unknown Exits Taken 1 | 1 . Scrap Searched . | . . Spaces Dug . | . . Terrain Destroyed . | . . Melee . | . . Projectile . | . . AOE . | . . Terrain Rammed . | . . Walls Destroyed . | . . Machines Disabled . | . . Actions | -11 -10 --------- Run | Yrd Mat Total 714 | 62 652 Wait 9 | . 9 Move 593 | 40 553 Hop . | . . Pick Up 14 | 3 11 Fast Attach 15 | 7 8 Attach 5 | 1 4 Detach 1 | 1 . Swap 3 | . 3 Drop 3 | 1 2 Fire 71 | 9 62 Melee . | . . Ram . | . . Kick . | . . Crush . | . . Escape Stasis . | . . Rewire . | . . Trap . | . . Miscellaneous . | . . Route ------- -11/Scrapyard -10/Materials (discovered 2 exits: *Mat / [*Min]) History --------- Turn | Location | Event 19 | -11/Scrapyard | Discovered new exit (range 16) 100 | -11/Scrapyard | Entered Materials 108 | -10/Materials | Discovered new exit (range 16) 306 | -10/Materials | Build established: Mutant 332 | -10/Materials | Discovered new exit (range 11) 392 | -10/Materials | Core integrity fell below 50% 414 | -10/Materials | Core integrity fell below 20% 424 | -10/Materials | Lost 5 parts (1p2n1u1w) 885 | -10/Materials | Identified exit to Materials 1010 | -10/Materials | Destroyed by G-47 Trooper with Particle Gun Last Messages --------------- 00916_ K-01 Serf cleans the Processing Tank. 00926_ T-07 Excavator is excavating. 00936_ K-01 Serf cleans the Pressure Siphon. 00939_ T-07 Excavator is excavating. 00939_ K-01 Serf cleans the Pressure Siphon. 00941_ U-05 Engineer lays Concrete. 00942_ K-01 Serf cleans the Pressure Siphon. 00942_ U-05 Engineer lays Concrete. 00943_ T-07 Excavator is excavating. 00943_ U-05 Engineer lays Concrete. 00965_ K-01 Serf cleans the Processing Tank. 00970_ G-34 Mercenary destroyed. 00973_ K-01 Serf cleans the Processing Tank. 00983_ Acquired 12 matter. 00988_ Acquired Aluminum Leg. 00989_ K-01 Serf cleans the Processing Tank. 00991_ Dropped Aluminum Leg. 00992_ Acquired 10 matter. 01001_ K-01 Serf collects debris. 01006_ Lgt. Assault Rifle destroyed. Map ----- +----------------------------------------------------+ | ### ############ # " # ?????????????????? | | ### """ # + " # ?????????????????? | | ### """ # # """ # ?????????????????? | | ### """ # ! # """ # ?????????????????? | | ### # """"" # " # ???? ????????????? | | ### """ # """"" # # ?????????????????? | | #### """ ## """"" # / # ? ???????????????? | | #### """ ## ####### ? ???????????????? | | ??## ## ####### ?????????????????? | | #?######### """"" ##???????????????????????? | | #?####?#### """"" ##???????????????????????? | | ?#?#??#???# """"" w ##???????????????????????? | | ?#???##???# #?????#??????????????????? | | ###??????## #?#??????????????????????? | | #???????#" """"" #??#?????????????????????? | | #????##?#T """"" #######??????????????????? | | #????#??#" """"" ???????????? | | #????#### k #######??????????????????? | | ###?????# ###??????????????????????? | | ##?????## ####### #??????????????????????? | | ########## %% #????#k #??????????????????????? | | *%%=" #????# #??????????????????????? | | != "T #????# #??????????????????????? | | = #????# #??????????????????????? | | ########## ##???# #??????????????????????? | | ##?#?#######????# @#??????????????????????? | | #??#????#???????# #??????????????????????? | | """ #??###??????????# #??????????????????????? | | """ #?????#?????????# #??????????????????????? | | """ #??#????????????# =#??????????????????????? | | #???#?????#?????# k%#??????????????????????? | | #####??#?#???????#??# [#??????????????????????? | | ####????????????????# g###+#####??????????????? | | [##???#???????????# g r #????????? | | #??????????# #????????? | | "" #??????????# # """ """ """ #????????? | | "" #????#??#??####### """ """ """???????????? | | "" #????????????????## """ """ ???????????????? | | ####?????????????????# """ """ ???????????????? | | ?????????????????????# ???????????????? | | ?????????????????????+ ???????????????? | | ?????????????????????# ? #???????????????? | | ?????????????????????# ??? #???????????????? | | ?????????????????????# ##????+##???????????????? | | ?????????????????????# ????????????????????????? | | ?????????????????????# ????????????????????????? | | ?????????????????????# ????????????????????????? | | ?????????????????????# ????????????????????????? | | ?????????????????????????????????????????????????? | | ?????????????????????????????????????????????????? | +----------------------------------------------------+ Best States ------------- Heat Dissipation 25 Energy Generation 10 Energy Capacity 250 Matter Stores 300 Matter Capacity 300 Sight Range 16 Terrain Scan Range 16 Terrain Scan Density 10 Evasion (%) 55 Recoil Reduction 2 Item Schematics ----------------- None Robot Schematics ------------------ None Fabricated ------------ Nothing Repaired ---------- Nothing Studied --------- None Alien Tech Used ----------------- None Achievements -------------- Physics Hates This One Trick Challenges ------------ None Game ------ Seed StormTrackerNanovents Manual? 0 Play Time 00:12:57 Cumulative 19.2 hours Start 2025.12.21 @ 01:23:34 End 2025.12.21 @ 01:34:58 Sessions 1 Manual Loads 0 Difficulty Rogue Special Mode None Game No. 30 Rogue 30 Adventurer 0 Explorer 0 Win Type - Total 0 Types 0/0/0/0/0/0/0/0/0/0 Lore% 7 Gallery% 10 Achievement% 11 Wizard Run 0 Options --------- Layout 0 ASCII 0 Keyboard 1 Movement Numpad Keybinds 0 Fullscreen 2 Font 18/SmallcapsGlow Map View 76x50 Zoom Use 0% Tactical HUD 1 Map Filters NONE Filters NONE Steam 1 RUN: aab8a31c-8a41-46c5-8572-47439b3e3872